[Event "XII Cracow ICC-A 2024"]
[Site "Krakow"]
[Date "2024.06.28"]
[Round "8.1"]
[White "Kosakowski, Jakub"]
[Black "Gumularz, Szymon"]
[Result "1/2-1/2"]
[ECO "C47"]
[WhiteElo "2480"]
[BlackElo "2593"]
[Annotator "TA"]
[PlyCount "70"]
[EventDate "2024.06.20"]
[EventType "swiss"]
[EventCountry "POL"]
[SourceTitle "playchess.com"]
[Source "ChessBase"]
[SourceQuality "1"]
[TimeControl "40/5400+30:1800+30"]

{[%evp 9,70,16,16,22,10,27,17,9,0,4,22,24,21,0,0,0,-4,-15,0,0,0,0,0,0,0,0,0,0,0,-42,-19,-25,-21,-69,-62,-81,-75,-75,-56,-59,-33,-28,-19,-20,-34,-33,-31,-33,-8,-16,-8,-4,0,0,-10,-5,-3,-8,-9,-8,0,0,0]} 1. e4 {[%emt 0:00:09]} e5 {[%emt 0:00:04]} 2. Nf3 {[%emt 0:00:26]} Nc6 {[%emt 0:01:47]} 3. Nc3 {[%emt 0:01:06]} Nf6 {[%emt 0:00:04]} 4. h3 {[%emt 0:00:19]} d5 {[%emt 0:00:45]} 5. exd5 {[%emt 0:00:23]} Nxd5 {[%emt 0:00:04]} 6. Bb5 {[%emt 0:00:27]} Nxc3 {[%emt 0:00:07]} 7. bxc3 {[%emt 0:00:07]} Bd6 {[%emt 0:00:12]} 8. d4 {[%emt 0:00:41]} exd4 {[%emt 0:06:10]} 9. O-O {[%emt 0:00:13]} O-O {[%emt 0:00:05]} 10. cxd4 {[%emt 0:00:16]} a6 {[%emt 0:02:32]} 11. Bxc6 {[%emt 0:12:26]} bxc6 {[%emt 0:00:05]} 12. c4 {[%emt 0:00:26]} c5 {[%emt 0:02:44]} 13. Bg5 {[%emt 0:12:46]} f6 {[%emt 0:02:11]} 14. Be3 {[%emt 0:03:12]} cxd4 {[%emt 0:02:23]} 15. Nxd4 {[%emt 0:01:15]} Qe8 {[%emt 0:09:09]} 16. Re1 {[%emt 0:11:19]} Qf7 {[%emt 0:02:23]} 17. Qc2 {[%emt 0:08:15]} (17. Rc1 {simplifies} Ba3 18. Rb1 Qxc4 19. Qf3) 17... Qg6 {[%emt 0:11:27]} 18. c5 {[%emt 0:06:28] [#] Qxg6 is the strong threat.} Be5 {[%emt 0:01:02] White must now prevent ...Qxc2.} 19. Rad1 {[%emt 0:01:21]} Qxc2 {[%emt 0:04:51]} 20. Nxc2 {[%emt 0:00:06]} Be6 {[%emt 0:04:00]} 21. a3 {[%emt 0:06:37]} (21. Bd4 $11 {feels stronger.}) 21... Bb3 $15 {[%emt 0:01:26] This pair of bishops is nice.} 22. Rc1 {[%emt 0:00:48] [#]} Rfd8 $1 {[%emt 0:03:22]} 23. Re2 {[%emt 0:06:26]} a5 {[%emt 0:03:50]} 24. Ne1 $1 {[%emt 0:01:21]} a4 {[%emt 0:06:36]} 25. f4 {[%emt 0:05:36]} Bd4 {[%emt 0:00:08][%cal Ob3d1] Hoping for ...Bd1!} 26. Nf3 {[%emt 0:00:30]} Bxe3+ {[%emt 0:00:30]} 27. Rxe3 {[%emt 0:00:09]} Kf8 {[%emt 0:02:15]} 28. Kf2 {[%emt 0:11:04]} Rd5 {[%emt 0:00:25]} 29. Re4 $1 {[%emt 0:00:48] The position is equal.} Rd3 {[%emt 0:10:20]} 30. Rd4 {[%emt 0:02:40]} Rd8 {[%emt 0:00:09]} 31. Rxd3 {[%emt 0:00:55]} Rxd3 {[%emt 0:00:05]} 32. Ke2 {[%emt 0:00:06]} Rd8 {[%emt 0:00:06]} 33. Ke3 {[%emt 0:01:13]} Re8+ {[%emt 0:00:16]} 34. Kf2 {[%emt 0:04:16]} Kf7 {[%emt 0:03:14]} 35. Nd4 {[%emt 0:01:00]} Rd8 {[%emt 0:15:59] Weighted Error Value: White=0.07 (flawless) /Black=0.04 (flawless) .  Mistake:       	White=1     	---        Inaccurate:     	White=1     	Black=1      OK:         	White=15    	Black=17     Best:        	White=2     	Black=2      Strong:       	White=2     	Black=1} 1/2-1/2

[Event "XII Cracow ICC-A 2024"]
[Site "Krakow"]
[Date "2024.06.28"]
[Round "8.2"]
[White "Rozentalis, Eduardas"]
[Black "Drozdowski, Kacper"]
[Result "1-0"]
[ECO "B10"]
[WhiteElo "2476"]
[BlackElo "2448"]
[Annotator "TA"]
[PlyCount "131"]
[EventDate "2024.06.20"]
[EventType "swiss"]
[EventCountry "POL"]
[SourceTitle "playchess.com"]
[Source "ChessBase"]
[SourceQuality "1"]
[TimeControl "40/5400+30:1800+30"]

{[%evp 56,131,62,16,21,15,20,19,50,7,50,56,109,102,117,114,107,107,92,97,139,149,169,135,214,214,213,213,213,210,347,336,363,355,504,550,543,523,521,397,466,444,506,496,422,196,170,193,194,177,160,161,174,172,165,179,164,200,164,176,208,85,94,23,23,32,150,153,145,149,4132,907,881,748,29981,29982,29983,29984]} 1. e4 {[%emt 0:00:02]} c6 {[%emt 0:00:13]} 2. Nf3 {[%emt 0:02:10]} d5 {[%emt 0:00:11]} 3. d3 {[%emt 0:00:10]} Qc7 {[%emt 0:00:44]} 4. g3 {[%emt 0:00:45]} e5 {[%emt 0:01:07]} 5. Bg2 {[%emt 0:01:02]} Nf6 {[%emt 0:00:53]} 6. O-O {[%emt 0:01:44] B10: Caro-Kann: 2 d3 and 2 c4.} dxe4 {[%emt 0:03:38]} 7. dxe4 {[%emt 0:00:41]} h6 {[%emt 0:00:58]} 8. Nbd2 {[%emt 0:03:33]} Be6 {[%emt 0:00:44]} 9. b3 {[%emt 0:00:33]} Nbd7 {[%emt 0:01:38]} 10. Bb2 {[%emt 0:00:44]} Bc5 {[%emt 0:07:59]} 11. Qe2 {[%emt 0:03:29]} b5 {[%emt 0:02:24]} 12. Ne1 {[%emt 0:03:16]} Bd6 {[%emt 0:14:52]} 13. Nd3 {[%emt 0:04:13]} c5 {[%emt 0:24:38]} 14. c4 {[%emt 0:08:31]} bxc4 {[%emt 0:00:05]} 15. Nxc4 {[%emt 0:00:09]} Bxc4 {[%emt 0:00:08]} 16. bxc4 {[%emt 0:00:05]} O-O {[%emt 0:01:23]} 17. f4 {[%emt 0:05:54]} Rfe8 {[%emt 0:00:06]} 18. Rae1 {[%emt 0:01:04]} Rab8 $146 {[%emt 0:00:23]} ({Predecessor:} 18... Nh7 19. Bc3 Nhf8 20. f5 Nh7 21. Nf2 Nb8 22. Ng4 Nc6 23. f6 h5 24. Ne3 g6 {1-0 Hou,Y (2632)-Kosteniuk,A (2526) Speed Chess (Women) blitz 2023 (2.9)}) 19. Bc3 {[%emt 0:01:18]} Re7 {[%emt 0:03:21]} 20. f5 {[%emt 0:08:05]} Qc6 {[%emt 0:02:14]} 21. Qc2 {[%emt 0:03:24]} Qa6 {[%emt 0:01:34]} 22. Bd2 {[%emt 0:00:20]} Nb6 {[%emt 0:00:42]} 23. Rc1 {[%emt 0:01:13]} Qa4 {[%emt 0:01:27]} 24. Bf3 {[%emt 0:01:50]} Reb7 {[%emt 0:03:49]} 25. Be3 {[%emt 0:04:40]} Qxc2 {[%emt 0:02:15]} 26. Rxc2 {[%emt 0:00:34]} Nfd7 {[%emt 0:00:10]} 27. h4 {[%emt 0:05:34]} Nc8 {[%emt 0:00:30]} 28. Rd1 {[%emt 0:04:37]} Rb1 {[%emt 0:01:03]} 29. Rcd2 {[%emt 0:01:06]} (29. Kg2 $14) 29... Rxd1+ $11 {[%emt 0:00:58]} 30. Rxd1 {[%emt 0:00:46]} Rb6 {[%emt 0:02:05]} 31. Rd2 {[%emt 0:14:19]} Kf8 {[%emt 0:00:09]} 32. Kf2 {[%emt 0:02:13]} Ke8 {[%emt 0:01:44]} 33. Bd1 {[%emt 0:03:20]} Ne7 {[%emt 0:04:54]} (33... Ra6 $14) 34. Nb2 $1 $16 {[%emt 0:06:29]} Bc7 {[%emt 0:05:30]} 35. Na4 {[%emt 0:02:28]} Rd6 {[%emt 0:01:35]} 36. Rxd6 {[%emt 0:04:12]} (36. Nxc5 $2 Rxd2+ 37. Bxd2 Nxc5 $19) 36... Bxd6 {[%emt 0:00:02]} 37. Nc3 {[%emt 0:00:20]} f6 {[%emt 0:07:21]} 38. Ba4 {[%emt 0:01:10]} Kd8 {[%emt 0:00:03]} 39. Kf3 {[%emt 0:01:59]} a6 {[%emt 0:01:35]} (39... Nb6 $16) 40. Bxd7 $1 $18 {[%emt 0:01:11]} Kxd7 {[%emt 0:00:01]} 41. Na4 {[%emt 0:30:25]} Nc6 {[%emt 0:34:23]} 42. Bxc5 {[%emt 0:00:00]} (42. Nxc5+ Bxc5 43. Bxc5 Ke8) 42... Na5 {[%emt 0:00:00]} (42... Nd4+ {was worth a try.} 43. Kg4 Ne2) 43. Bxd6 $1 $18 {[%emt 0:00:00]} Kxd6 {[%emt 0:00:00]} 44. c5+ {[%emt 0:00:00]} Kc6 {[%emt 0:00:00]} (44... Ke7 $142 45. Kg4 Kf7) 45. Kg4 $1 $18 {[%emt 0:00:00]} Nc4 {[%emt 0:00:00]} 46. Kh5 {[%emt 0:00:00]} Nd2 {[%emt 0:00:00]} 47. Kg6 {[%emt 0:00:00]} Nxe4 {[%emt 0:00:00]} 48. Kxg7 {[%emt 0:00:00]} h5 {[%emt 0:00:00]} 49. Kg6 {[%emt 0:00:00]} Kb5 {[%emt 0:00:00]} 50. c6 {[%emt 0:00:00]} (50. Nb2 $142) 50... Kxc6 $18 {[%emt 0:00:00]} 51. Kxh5 {[%emt 0:00:00]} Kb5 {[%emt 0:00:00]} 52. Nb2 {[%emt 0:00:00]} Nf2 {[%emt 0:00:00]} 53. Kg6 {[%emt 0:00:00]} e4 {[%emt 0:00:00]} 54. h5 $1 {[%emt 0:00:00]} (54. Kxf6 $2 e3 55. Kg6 e2 $19) 54... e3 {[%emt 0:00:00]} 55. h6 $1 {[%emt 0:00:00]} (55. Kxf6 $2 e2 56. Kf7 e1=Q $19 (56... e1=R 57. h6 $17)) 55... e2 {[%emt 0:00:00]} 56. h7 $1 {[%emt 0:00:00]} (56. Kxf6 $2 e1=Q (56... e1=R 57. h7 $16) 57. Kf7 Ne4 $19 (57... Qh1 $2 58. Ke7 $19)) 56... e1=Q {[%emt 0:00:00]} 57. h8=Q {[%emt 0:00:00]} (57. h8=R $2 Ne4 58. Rb8+ Kc6 $19) 57... Qe5 {[%emt 0:00:00]} 58. Qxf6 {[%emt 0:00:00]} (58. Qd8 $18 {is more deadly.} Qxg3+ 59. Kf7 (59. Kxf6 $2 Qh4+ 60. Ke5 Qxd8 $19)) 58... Qxg3+ $16 {[%emt 0:00:00]} 59. Qg5 {[%emt 0:00:00]} (59. Kf7 $16) 59... Qxg5+ $1 $11 {[%emt 0:01:31]} 60. Kxg5 {[%emt 0:00:00]} Ne4+ {[%emt 0:00:02] [#]} (60... Kc5 $1 $14) 61. Kf4 $1 $16 {[%emt 0:00:00]} ({Don't play} 61. Kg6 $6 Kb4 $11) 61... Nf6 {[%emt 0:02:55] [#]} 62. Ke5 $1 {[%emt 0:00:00]} Ne8 $2 {[%emt 0:01:46][%mdl 8192]} (62... Nh7 $16 63. Ke6 Kc5) 63. Nd3 {[%emt 0:00:00]} ({Not} 63. f6 Nxf6 64. Kxf6 Kb4 $11) (63. Nd1 $142 Kc6 64. f6 Nxf6 65. Kxf6) 63... a5 $18 {[%emt 0:00:07]} 64. Nf4 {[%emt 0:00:00]} Kb4 {[%emt 0:00:29]} 65. Ne6 {[%emt 0:00:13]} Ka3 {[%emt 0:00:20]} 66. Ng7 {[%emt 0:00:13]} ({And not} 66. f6 Nxf6 67. Kxf6 Kxa2 $11) 1-0

[Event "XII Cracow ICC-A 2024"]
[Site "Krakow"]
[Date "2024.06.28"]
[Round "8.3"]
[White "Vetoshko, Volodymyr"]
[Black "Samunenkov, Ihor"]
[Result "1/2-1/2"]
[ECO "A37"]
[WhiteElo "2505"]
[BlackElo "2532"]
[Annotator "TA"]
[PlyCount "34"]
[EventDate "2024.06.20"]
[EventType "swiss"]
[EventCountry "POL"]
[SourceTitle "playchess.com"]
[Source "ChessBase"]
[SourceQuality "1"]
[TimeControl "40/5400+30:1800+30"]

{[%evp 15,34,12,19,11,13,5,12,8,21,0,0,0,0,0,0,0,0,9,0,0,8]} 1. c4 {[%emt 0:00:03]} c5 {[%emt 0:00:20]} 2. Nf3 {[%emt 0:00:44]} Nc6 {[%emt 0:00:11]} 3. g3 {[%emt 0:01:00]} g6 {[%emt 0:00:12]} 4. Bg2 {[%emt 0:00:22]} Bg7 {[%emt 0:00:11]} 5. Nc3 {[%emt 0:00:24]} d6 {[%emt 0:00:10]} 6. O-O {[%emt 0:01:38]} Rb8 {[%emt 0:00:09]} 7. e3 {[%emt 0:04:02]} Nf6 {[%emt 0:00:18]} 8. d4 {[%emt 0:01:47]} O-O {[%emt 0:00:11] The position is equal.} 9. b3 {[%emt 0:10:36]} Be6 {[%emt 0:01:23]} 10. Bb2 {[%emt 0:09:24] [#] Strongly threatening d5.} cxd4 {[%emt 0:00:14]} 11. Nxd4 {[%emt 0:02:00]} Nxd4 {[%emt 0:00:11]} 12. Qxd4 {[%emt 0:01:55]} (12. exd4 {simplifies} d5 13. c5 Qd7 14. Re1) 12... Nd5 {[%emt 0:00:18]} 13. Qd2 {[%emt 0:01:43]} Nxc3 {[%emt 0:00:14]} 14. Bxc3 {[%emt 0:00:05]} Bxc3 {[%emt 0:00:10]} 15. Qxc3 {[%emt 0:00:04]} b5 {[%emt 0:00:12]} 16. cxb5 {[%emt 0:10:39]} Rxb5 {[%emt 0:00:12]} 17. Rfc1 {[%emt 0:00:43]} a5 {[%emt 0:07:42] An uneventful encounter.   Weighted Error Value: White=0.02 (flawless) /Black=0.01 (flawless) .  OK:         	---       	Black=3} 1/2-1/2

[Event "XII Cracow ICC-A 2024"]
[Site "Krakow"]
[Date "2024.06.28"]
[Round "8.4"]
[White "Kelires, Andreas"]
[Black "Nurgaliyev, Sauat"]
[Result "1-0"]
[ECO "E60"]
[WhiteElo "2515"]
[BlackElo "2321"]
[Annotator "TA"]
[PlyCount "117"]
[EventDate "2024.06.20"]
[EventType "swiss"]
[EventCountry "POL"]
[SourceTitle "playchess.com"]
[Source "ChessBase"]
[SourceQuality "1"]
[TimeControl "40/5400+30:1800+30"]

{[%evp 16,117,77,74,88,85,79,56,71,55,118,104,208,118,118,63,58,32,57,53,54,35,31,26,36,37,65,0,0,0,58,51,87,45,45,43,59,60,54,54,62,56,65,77,82,67,85,35,34,0,0,0,0,0,0,0,12,8,18,8,0,7,0,3,6,8,8,5,252,259,236,212,868,779,782,764,2160,1866,1740,1098,1806,1662,1303,1200,1085,1058,1058,848,29975,29976,29976,29977,29977,29978,29978,29972,29971,29972,8092,5085,29986,29987,29986,29986]} 1. d4 {[%emt 0:00:04]} Nf6 {[%emt 0:00:09]} 2. c4 {[%emt 0:00:06]} g6 {[%emt 0:00:15]} 3. h4 {[%emt 0:00:12]} Bg7 {[%emt 0:01:51]} 4. Nc3 {[%emt 0:00:16]} d5 {[%emt 0:02:08]} 5. h5 {[%emt 0:00:58]} O-O {[%emt 0:00:13]} 6. hxg6 {[%emt 0:01:21] E60: King's Indian: Unusual lines and Fianchetto Variation without Nc3.} hxg6 {[%emt 0:00:07]} 7. Nf3 {[%emt 0:01:05]} c5 {[%emt 0:02:51]} 8. Bh6 {[%emt 0:02:10]} dxc4 {[%emt 0:14:03] [#]} 9. Qd2 $1 {[%emt 0:29:45]} ({But not} 9. dxc5 Nc6 $11) 9... Ng4 {[%emt 0:01:36]} 10. Bxg7 {[%emt 0:00:35]} Kxg7 {[%emt 0:00:09]} 11. d5 $146 {[%emt 0:01:07]} ({Reject} 11. dxc5 Qxd2+ 12. Nxd2 Na6 $11) ({Predecessor:} 11. e4 cxd4 12. Nxd4 e5 13. Nf3 Qxd2+ 14. Nxd2 Rd8 15. Bxc4 Nxf2 16. Rf1 Nd3+ 17. Bxd3 Rxd3 {0-1 Vidonyak,R (2442)-Postnikov,D (2360) Titled Tuesday intern op 16th Aug Early blitz 2022 (2)}) 11... Nd7 {[%emt 0:05:20]} 12. e4 {[%emt 0:11:13]} e5 {[%emt 0:20:58]} ({Black should try} 12... Rh8 $14 13. Rxh8 Qxh8) 13. Bxc4 {[%emt 0:05:14]} (13. dxe6 {is more complex.} Nde5 14. Qxd8 Rxd8 15. e7) 13... a6 {[%emt 0:00:05]} (13... Rh8 $16 14. O-O-O Nb6) 14. Be2 {[%emt 0:11:55]} (14. d6 $18 {Hoping for 0-0-0.} b5 15. Bd5) 14... Rh8 $16 {[%emt 0:10:06] [#]} 15. Rxh8 {[%emt 0:11:20]} ({Better is} 15. O-O-O $1 $16) 15... Qxh8 $14 {[%emt 0:00:13]} 16. Qg5 {[%emt 0:00:10]} Qh1+ {[%emt 0:05:52]} 17. Bf1 {[%emt 0:00:04]} Nh2 {[%emt 0:03:36]} 18. Nd2 {[%emt 0:01:38]} Nxf1 {[%emt 0:01:49]} 19. Nxf1 {[%emt 0:00:04]} f6 {[%emt 0:01:40]} 20. Qg3 {[%emt 0:00:56]} Qh6 {[%emt 0:02:25]} 21. Ne3 {[%emt 0:00:11]} Qh1+ {[%emt 0:00:17]} 22. Nf1 {[%emt 0:00:04]} Qh6 {[%emt 0:00:02]} 23. a4 {[%emt 0:04:01]} Rb8 {[%emt 0:05:24]} 24. Qh2 {[%emt 0:00:58]} Qxh2 {[%emt 0:01:14]} 25. Nxh2 {[%emt 0:00:01]} c4 {[%emt 0:00:01]} 26. Nf1 {[%emt 0:02:11]} Nc5 {[%emt 0:03:28]} 27. Ne3 $1 {[%emt 0:03:21]} Nb3 {[%emt 0:04:43]} 28. Ra3 {[%emt 0:02:38]} Na5 {[%emt 0:00:45]} 29. Nb1 $1 {[%emt 0:01:21]} Bd7 {[%emt 0:01:42]} 30. Nd2 {[%emt 0:00:18]} Rc8 {[%emt 0:01:06]} 31. f3 {[%emt 0:01:29]} (31. g3 $16) 31... Kf7 $14 {[%emt 0:01:11]} 32. Rc3 {[%emt 0:01:50]} b5 {[%emt 0:01:48]} 33. axb5 {[%emt 0:00:09]} axb5 {[%emt 0:00:15]} 34. Ra3 {[%emt 0:00:21]} Nb7 $1 {[%emt 0:01:05]} 35. b4 {[%emt 0:02:54]} cxb3 {[%emt 0:02:20]} 36. Ra7 {[%emt 0:01:44]} Rc1+ {[%emt 0:02:33]} 37. Ke2 {[%emt 0:02:53]} Nc5 {[%emt 0:00:30]} 38. Nxb3 $1 {[%emt 0:00:04]} Nxb3 {[%emt 0:00:04]} 39. Rxd7+ {[%emt 0:00:04]} Ke8 $1 {[%emt 0:00:42]} 40. Rb7 {[%emt 0:02:24]} Nd4+ $1 {[%emt 0:04:09]} 41. Kf2 {[%emt 0:02:31]} Rc8 $2 {[%emt 0:11:43]} (41... f5 $11) 42. Ng4 $18 {[%emt 0:04:28]} Rc2+ {[%emt 0:01:44]} 43. Ke3 {[%emt 0:02:53]} Rxg2 $2 {[%emt 0:03:41]} (43... Kd8 44. Nxf6 Kc8) 44. Nxf6+ $18 {[%emt 0:00:32]} Kd8 {[%emt 0:01:07]} 45. d6 {[%emt 0:04:38]} Nc2+ {[%emt 0:01:19]} 46. Kd3 {[%emt 0:00:04]} Ne1+ {[%emt 0:00:18]} 47. Kc3 {[%emt 0:00:50]} Rc2+ {[%emt 0:00:34]} 48. Kb4 {[%emt 0:01:03]} Nd3+ {[%emt 0:03:20]} 49. Ka5 {[%emt 0:00:30]} Rc6 {[%emt 0:03:41]} 50. Rd7+ {[%emt 0:00:10]} ({And not} 50. Rxb5 Rxd6 51. Rb8+ Kc7 $11) 50... Kc8 {[%emt 0:00:01]} 51. Kxb5 {[%emt 0:00:07]} Rc5+ {[%emt 0:05:12]} 52. Kb6 {[%emt 0:00:09]} Rc1 {[%emt 0:00:32]} 53. Rc7+ {[%emt 0:00:28]} Kd8 {[%emt 0:01:08]} 54. Rh7 {[%emt 0:02:04]} Rb1+ {[%emt 0:00:16]} 55. Kc6 {[%emt 0:01:10]} Nb4+ {[%emt 0:02:25]} 56. Kc5 {[%emt 0:00:57]} Na6+ {[%emt 0:01:50]} 57. Kc4 {[%emt 0:01:51]} Rb4+ {[%emt 0:00:35]} 58. Kc3 {[%emt 0:00:20]} Kc8 {[%emt 0:00:41]} 59. d7+ {[%emt 0:00:10]} 1-0

[Event "XII Cracow ICC-A 2024"]
[Site "Krakow"]
[Date "2024.06.28"]
[Round "8.5"]
[White "Mahitosh Dey"]
[Black "Moussard, Jules"]
[Result "0-1"]
[ECO "B92"]
[WhiteElo "2232"]
[BlackElo "2610"]
[Annotator "TA"]
[PlyCount "104"]
[EventDate "2024.06.20"]
[EventType "swiss"]
[EventCountry "POL"]
[SourceTitle "playchess.com"]
[Source "ChessBase"]
[SourceQuality "1"]
[TimeControl "40/5400+30:1800+30"]

{[%evp 15,104,19,19,4,0,-8,-12,0,0,-76,-72,-104,-99,-93,-87,-91,-49,-52,-50,-57,-40,-61,-49,-54,-63,-56,-48,-67,0,0,0,0,0,-43,-38,-45,-50,-54,-57,-46,-37,-33,-23,-27,-20,-29,0,-28,-14,-17,-16,-13,-26,-23,-29,-83,-71,-74,-75,-101,-78,-248,-162,-177,-88,-256,-301,-400,-483,-456,-485,-468,-464,-452,-299,-460,-256,-282,-288,-397,-275,-262,-255,-354,-373,-366,-363,-354,-351,-29987,-29988]} 1. e4 {[%emt 0:00:42]} c5 {[%emt 0:00:10]} 2. Nf3 {[%emt 0:00:44]} d6 {[%emt 0:00:05]} 3. d4 {[%emt 0:00:03]} cxd4 {[%emt 0:00:05]} 4. Nxd4 {[%emt 0:00:04]} Nf6 {[%emt 0:00:06]} 5. Nc3 {[%emt 0:00:06]} a6 {[%emt 0:00:02]} 6. Be2 {[%emt 0:00:03]} e5 {[%emt 0:00:11]} 7. Nb3 {[%emt 0:00:05]} Be7 {[%emt 0:00:12]} 8. Be3 {[%emt 0:00:06]} Be6 {[%emt 0:00:31]} 9. Qd3 {[%emt 0:00:05]} O-O {[%emt 0:00:35]} 10. Nd5 {[%emt 0:00:05]} Nxd5 {[%emt 0:00:21]} 11. exd5 {[%emt 0:00:06] The position is equal.} Bc8 {[%emt 0:00:05]} 12. g4 {[%emt 0:05:32]} (12. Rd1 $11) 12... f5 $17 {[%emt 0:02:12]} 13. gxf5 {[%emt 0:00:09]} Bxf5 {[%emt 0:00:08]} 14. Qd2 {[%emt 0:00:18]} a5 {[%emt 0:04:16]} 15. Bd3 {[%emt 0:12:48]} a4 {[%emt 0:00:50]} 16. Bxf5 {[%emt 0:01:38]} Rxf5 {[%emt 0:00:06]} 17. Nc1 {[%emt 0:00:03][%cal Bb3c1,Bc1e2,Be2g3][%mdl 32]} Bg5 {[%emt 0:06:04]} 18. Ne2 $1 {[%emt 0:00:10]} Nd7 {[%emt 0:08:44]} 19. Ng3 {[%emt 0:02:53]} Bxe3 {[%emt 0:00:07]} 20. fxe3 {[%emt 0:00:05]} Rf3 {[%emt 0:02:46]} 21. O-O-O {[%emt 0:04:46]} Qb6 {[%emt 0:00:33]} (21... a3 $15 22. b3 Qh4) 22. Rhf1 $11 {[%emt 0:16:04]} Raf8 {[%emt 0:00:36]} (22... Rxe3 $2 23. Nf5 $18) (22... Qxe3 23. Qxe3 Rxe3 24. Kd2 Rxg3 25. hxg3 $14) 23. Rxf3 {[%emt 0:00:21]} Rxf3 {[%emt 0:00:05]} 24. Rf1 {[%emt 0:00:51]} Rxf1+ {[%emt 0:04:39]} (24... Qxe3 25. Qxe3 Rxe3 26. Kd2 (26. Nf5 Re2 $11) 26... Rxg3 (26... Nf6 $2 27. Kxe3 Nxd5+ 28. Kd2 $18) 27. hxg3 $18) (24... Rxe3 $2 25. Nf5 $18) 25. Nxf1 $15 {[%emt 0:00:04][%mdl 4096] Endgame. KQN-KQN} Nf6 {[%emt 0:02:07]} 26. c4 {[%emt 0:03:23]} Qc5 {[%emt 0:01:12]} 27. b3 {[%emt 0:02:39]} axb3 {[%emt 0:05:21]} 28. axb3 {[%emt 0:00:09]} Qa3+ {[%emt 0:00:10]} 29. Qb2 {[%emt 0:02:42]} Qb4 {[%emt 0:00:47]} 30. Kd1 {[%emt 0:03:41] Against Qe1+} g6 {[%emt 0:03:15]} 31. Ke2 {[%emt 0:00:55]} b5 $36 {[%emt 0:04:05][%mdl 2048] Black has good play.} 32. Qc2 {[%emt 0:00:25]} Qc5 {[%emt 0:00:03] Black wants to play ...Nxd5.} 33. Qa2 {[%emt 0:00:31]} bxc4 {[%emt 0:00:32]} 34. bxc4 {[%emt 0:00:23]} Qc8 {[%emt 0:00:06]} 35. Ke1 {[%emt 0:01:28]} (35. Nd2 $11 {remains equal.}) 35... Ne4 $17 {[%emt 0:08:52]} 36. Nd2 {[%emt 0:03:21]} Nc5 {[%emt 0:00:34] Black is more active.} 37. Nf1 {[%emt 0:11:02]} Qd8 {[%emt 0:09:54]} 38. Qa7 $2 {[%emt 0:04:10]} (38. Qe2 $17) 38... Qf6 {[%emt 0:08:00]} 39. Ng3 {[%emt 0:00:57] [#]} h5 {[%emt 0:00:36]} (39... e4 $1 $19 {is more deadly. ( -> ...Nd3+)} 40. Qb6 Kg7) 40. Qc7 $2 {[%emt 0:07:03]} (40. Qb8+ $17 {was necessary.} Kh7 41. Nh1) 40... h4 $19 {[%emt 0:02:35]} 41. Ne2 {[%emt 0:30:06]} Ne4 {[%emt 0:33:02] Prevents Nc3. White must now prevent ...Qf2+.} 42. Qc8+ {[%emt 0:00:18]} Kg7 {[%emt 0:00:04]} 43. Qd7+ {[%emt 0:00:44]} Kh6 {[%emt 0:00:03]} 44. Qg4 {[%emt 0:00:09]} Qf2+ {[%emt 0:00:33]} 45. Kd1 {[%emt 0:00:09]} Ng5 {[%emt 0:00:47]} (45... Qxe3 46. Qxh4+ Kg7 47. Qe7+ Kh8 48. Qf8+ Kh7 49. Qe7+ Kh6 50. Qh4+ Kg7 51. Qe7+ Kg8 52. Qd8+ Kf7 53. Qc7+ Ke8 54. Qc8+ Ke7 55. Qc7+ Kf6 56. Qd8+ Kf5 57. Qc8+ Kg5 58. Qd8+ Nf6 59. h4+ Kf5 (59... Kxh4 $2 60. Qxf6+ Kh5 61. Qxd6 $18) 60. Qc8+ Ke4 61. Qe6 $11) (45... Nf6 $142 46. Qg1 Qf3) 46. Ng1 {[%emt 0:03:45][%cal Og4g5] Threatens to win with Qxg5+!} Qxe3 {[%emt 0:11:43] Hoping for ...Kg7.} (46... Qxh2 $2 {is the wrong capture.} 47. Qxg5+ Kxg5 48. Nf3+ Kf5 49. Nxh2 $18) 47. Qxh4+ {[%emt 0:05:14]} Kg7 {[%emt 0:00:01]} 48. Qg4 {[%emt 0:00:39]} e4 {[%emt 0:00:59]} 49. Ne2 {[%emt 0:03:37]} Qd3+ {[%emt 0:03:33]} 50. Ke1 {[%emt 0:00:45]} Nf3+ {[%emt 0:00:21]} 51. Kf2 {[%emt 0:00:11]} Ne5 {[%emt 0:00:07] Repels Qd7+} ({Inferior is} 51... Nxh2 52. Qg2 Qf3+ (52... Nf3 53. Qxg6+ Kxg6 54. Nf4+ Kf5 55. Nxd3 $11) 53. Qxf3 Nxf3 (53... exf3 54. Nc3 $11) 54. Nc3 $11) (51... Qxc4 52. Qd7+ Kh6 53. Qxd6 $11) 52. Qg5 {[%emt 0:06:39] [#]} (52. Qg2 $19) 52... e3+ {[%emt 0:00:54] Weighted Error Value: White=0.38/Black=0.17 (very precise) .  Loses game:     	White=2     	---        Mistake:       	White=3     	Black=3      Inaccurate:     	White=7     	Black=4      OK:         	White=13    	Black=20     Best:        	White=7     	Black=5      Strong:       	White=1     	---} (52... Qxc4 53. Qe7+ Nf7 54. Ng3 $17) 0-1